bitfinex-derivatives/quotes_BTCF0:USTF0_20250416
["timestamp","ask_amount","ask_price","bid_price","bid_amount"]
[1744822154675,0.0588185,85015.0,85011.0,0.0315]
[1744822154977,0.1764653,85011.0,85010.0,0.1176425]
[1744822155176,0.1764653,85011.0,85010.0,0.1491425]
[1744822156280,0.1784653,85011.0,85010.0,0.1491425]
[1744822156973,0.1794653,85011.0,85010.0,0.1491425]
[1744822157571,0.6037653,85011.0,85010.0,0.1491425]
[1744822157974,0.6037653,85011.0,85010.0,0.1176425]
[1744822158779,0.6037653,85011.0,85010.0,0.1484425]
[1744822160379,0.6037653,85011.0,85010.0,0.1176425]
[1744822160591,0.1176467,85007.0,85006.0,0.1484441]
[1744822160783,0.4861213,85011.0,84995.0,0.0588316]
[1744822160784,0.1176495,85005.0,84995.0,0.0588316]
[1744822161086,0.1176495,85005.0,85004.0,0.11782745]
[1744822161476,0.1788495,85005.0,85004.0,0.11782745]
[1744822162283,0.1788495,85005.0,85004.0,0.15102745]
[1744822162582,0.1798495,85005.0,85004.0,0.15102745]
[1744822162886,0.1808495,85005.0,85004.0,0.15102745]
[1744822164186,0.1808495,85005.0,85004.0,0.11782745]
[1744822164375,0.1808495,85005.0,85004.0,0.00017655]
[1744822164579,0.1808495,85005.0,85004.0,1.559e-05]
[1744822165086,0.1808495,85005.0,85004.0,0.11766649]
[1744822168186,0.1808495,85005.0,85004.0,1.559e-05]
[1744822169484,0.1808495,85005.0,85004.0,0.03321559]
[1744822170182,0.1808495,85005.0,85004.0,0.15086649]
[1744822170391,0.1196495,85005.0,85004.0,0.15086649]
[1744822170685,0.1196495,85005.0,85004.0,0.16086649]
[1744822170686,0.002,85005.0,85004.0,0.16086649]
[1744822170887,0.002,85005.0,85004.0,0.20146649]
[1744822172290,0.002,85005.0,85004.0,0.19146649]
[1744822173689,0.1196495,85005.0,85004.0,0.19146649]
[1744822179190,0.1196495,85005.0,85004.0,1.69146649]
[1744822179885,0.002,85005.0,85004.0,1.69146649]
[1744822180380,0.1196495,85005.0,85004.0,1.69146649]
[1744822180785,0.1196495,85005.0,85004.0,0.19146649]
[1744822183097,0.1196495,85005.0,85004.0,0.20146649]
[1744822185599,0.1196495,85005.0,85004.0,0.19146649]
[1744822185799,0.1196495,85005.0,85004.0,0.20146649]
[1744822186095,0.1196495,85005.0,85004.0,0.19146649]
[1744822190198,0.1196495,85005.0,85004.0,0.03321559]
[1744822190502,0.1802495,85005.0,85004.0,0.15086649]
[1744822191205,0.002,85005.0,85004.0,0.16086649]
[1744822191394,0.002,85005.0,85004.0,0.20126649]
[1744822198304,0.1196495,85005.0,85004.0,0.20126649]
[1744822198505,0.1196495,85005.0,85004.0,0.19126649]
[1744822198700,0.1196495,85005.0,85004.0,0.20126649]
[1744822200297,0.002,85005.0,85004.0,0.20126649]
[1744822201007,0.1196495,85005.0,85004.0,0.20126649]
[1744822201209,0.1196495,85005.0,85004.0,0.17086649]
[1744822201399,0.5422495,85005.0,85004.0,0.16086649]
[1744822202407,0.1814495,85005.0,85004.0,0.16086649]
[1744822203295,0.5422495,85005.0,85004.0,0.16086649]
[1744822206312,0.5422495,85005.0,85004.0,1.559e-05]
[1744822208404,0.5422495,85005.0,85004.0,0.11766649]
[1744822208608,0.002,85005.0,85004.0,0.11766649]
[1744822208907,0.24039878,85050.0,85004.0,0.11766649]
[1744822208908,0.0588113,85025.0,85012.0,0.1176398]
[1744822209203,0.474,85022.0,85012.0,0.1576398]
[1744822209404,0.4421,85022.0,85012.0,0.2496398]
[1744822209605,0.4421,85022.0,85012.0,1.7496398]
[1744822210105,0.0307,85022.0,85021.0,0.1176274]
[1744822210298,0.1176125,85032.0,85030.0,0.1176136]
[1744822210502,0.1824125,85032.0,85031.0,0.1176135]
[1744822210702,0.19934356,85032.0,85031.0,0.1484135]
[1744822210906,0.19934356,85032.0,85031.0,1.6484135]
[1744822211105,0.19934356,85032.0,85031.0,1.5]
[1744822211308,0.20796765,85032.0,85031.0,1.6176135]
[1744822214013,0.08173106,85032.0,85031.0,1.6176135]
[1744822214225,0.0326,85032.0,85031.0,1.6493135]
[1744822214413,0.1502121,85032.0,85031.0,1.6493135]
[1744822214921,0.1502121,85032.0,85031.0,1.6793135]
[1744822215321,0.1810121,85032.0,85031.0,1.6476135]
[1744822215923,0.1820121,85032.0,85031.0,1.6476135]
[1744822216724,0.1820121,85032.0,85031.0,1.7091135]
[1744822217920,0.1820121,85032.0,85031.0,1.7409135]
[1744822218223,0.1186121,85032.0,85031.0,1.7409135]
[1744822218516,0.3608,85036.0,85031.0,1.7409135]
[1744822218517,0.3608,85044.0,85034.0,0.0588043]
[1744822218716,0.3608,85044.0,85043.0,0.1175969]
[1744822218915,0.4783955,85044.0,85043.0,0.1275969]
[1744822219420,0.3608,85044.0,85043.0,0.1275969]
[1744822219719,0.01616601,85051.0,85049.0,0.1175886]
[1744822220107,0.1220937,85050.0,85049.0,0.1175886]
[1744822221121,0.1220937,85050.0,85049.0,0.09773444]
[1744822222025,0.0916937,85050.0,85049.0,0.09773444]
[1744822222216,0.0916937,85050.0,85049.0,0.12913444]
[1744822223021,0.1248937,85050.0,85049.0,0.12913444]
[1744822223317,0.0587876,85059.0,85052.0,0.0587916]
[1744822223521,0.0587876,85059.0,85056.0,0.1763664]
[1744822223522,0.0587888,85057.0,85056.0,0.1763664]
[1744822223716,0.1763693,85057.0,85056.0,0.2404664]
[1744822223912,0.2406693,85057.0,85056.0,0.2404664]
[1744822224112,0.25694133,85057.0,85056.0,0.2404664]
[1744822224310,0.25694133,85057.0,85056.0,0.1228888]
[1744822225026,0.2406693,85057.0,85056.0,0.1228888]
[1744822225225,0.2406693,85057.0,85056.0,0.0641]
[1744822225421,0.61794842,85057.0,85056.0,0.0327]
[1744822225924,0.61794842,85057.0,85044.0,0.1763932]
[1744822225925,0.1763947,85045.0,85044.0,0.1763932]
[1744822226223,0.2351925,85045.0,85044.0,0.1863932]
[1744822226723,0.0587978,85045.0,85044.0,0.1863932]
[1744822226911,0.0587978,85045.0,85044.0,0.2195932]
[1744822227328,0.0587978,85045.0,85044.0,0.2495932]
[1744822228520,0.0587978,85045.0,85044.0,0.1219977]
[1744822228727,0.1230978,85045.0,85044.0,0.1219977]
[1744822231328,0.1763861,85048.0,85047.0,0.1175914]
[1744822231516,0.1763861,85048.0,85047.0,0.1811914]
[1744822233623,0.0587937,85050.0,85049.0,0.1175886]
[1744822233930,0.478386,85051.0,85050.0,0.1175873]
[1744822234120,0.478386,85051.0,85050.0,0.1485873]
[1744822234320,0.478386,85051.0,85050.0,0.1808873]
[1744822234629,0.1763768,85053.0,85052.0,0.1175845]
[1744822234927,0.1763768,85053.0,85052.0,0.1275845]
[1744822237022,0.5371768,85053.0,85052.0,0.1275845]
[1744822237222,0.5371768,85053.0,85052.0,0.01]
[1744822237425,0.5371768,85053.0,85052.0,0.1175845]
[1744822240436,0.5371768,85053.0,85052.0,0.2151845]
[1744822241034,0.5371768,85053.0,85052.0,0.1823845]
[1744822241537,0.5371768,85053.0,85052.0,0.1508845]
[1744822244836,0.5371768,85053.0,85052.0,0.13985559]
[1744822246038,0.1763768,85053.0,85052.0,0.13985559]
[1744822246338,0.5371768,85053.0,85052.0,0.17265559]
[1744822247338,0.0587917,85053.0,85052.0,0.17265559]
[1744822247638,0.4195917,85053.0,85052.0,0.17265559]
[1744822249738,0.4840917,85053.0,85052.0,0.17265559]
[1744822250234,0.3926,85053.0,85052.0,0.17265559]
[1744822250440,0.117579,85056.0,85055.0,0.1175803]
[1744822250741,0.1763663,85059.0,85058.0,0.1175762]
[1744822250931,0.1763663,85059.0,85058.0,0.10654785]
[1744822251239,0.1763663,85059.0,85058.0,0.16934785]
[1744822251539,0.25482434,85059.0,85058.0,0.0302]
[1744822251744,0.28642434,85059.0,85058.0,0.1477762]
[1744822251935,0.28642434,85059.0,85058.0,0.1175762]
[1744822252135,0.1763782,85053.0,85052.0,0.0587916]
[1744822252440,0.1175983,85042.0,85039.0,0.0588008]
[1744822252639,0.4783983,85042.0,85033.0,0.0323]
[1744822252841,0.4783983,85042.0,85032.0,0.0313]
[1744822253031,0.4783983,85042.0,85039.0,0.1176021]
[1744822253032,0.5100983,85042.0,85039.0,0.1176021]
[1744822253441,0.5100983,85042.0,85040.0,0.1176003]
[1744822253635,0.5100983,85042.0,85036.0,0.0588029]
[1744822253831,0.5414983,85042.0,85039.0,0.0309]
[1744822254236,0.5414983,85042.0,85041.0,0.11777614]
[1744822254939,0.5414983,85042.0,85041.0,0.00017644]
[1744822255841,0.1176094,85034.0,85033.0,0.1485103]
[1744822256141,0.4784094,85034.0,85033.0,0.1485103]
[1744822256839,0.5429094,85034.0,85033.0,0.1485103]
[1744822257041,0.55867663,85034.0,85033.0,0.13747893]
[1744822257339,0.3608,85034.0,85033.0,0.13747893]
[1744822257739,0.4784094,85034.0,85033.0,0.13747893]
[1744822258543,0.3608,85034.0,85033.0,0.13747893]
[1744822259040,0.4784094,85034.0,85033.0,0.13747893]
[1744822261942,0.1176094,85034.0,85033.0,0.13747893]
[1744822262143,0.1176094,85034.0,85033.0,0.17067893]
[1744822262945,0.3608,85035.0,85034.0,0.1176094]
[1744822263145,0.478408,85035.0,85034.0,0.1835094]
[1744822263446,0.3608,85035.0,85034.0,0.1835094]
[1744822263645,0.1176067,85036.0,85035.0,0.1764106]
[1744822264047,0.1176067,85036.0,85035.0,0.2096106]
[1744822264545,0.05897574,85042.0,85035.0,0.092004]
[1744822264848,0.05897574,85042.0,85041.0,0.1175997]
[1744822265353,0.00017644,85042.0,85041.0,0.1501997]
[1744822268747,0.06357644,85042.0,85041.0,1.6501997]
[1744822268941,0.06357644,85042.0,85041.0,1.6175997]
[1744822269650,0.18117474,85042.0,85041.0,1.6175997]
[1744822269850,0.1764071,85039.0,85038.0,0.1764056]
[1744822270641,0.235209,85039.0,85038.0,0.0588018]
[1744822273955,0.1176038,85039.0,85038.0,0.0588018]
[1744822274451,0.0588019,85039.0,85038.0,0.0588018]
[1744822274652,0.12237584,85042.0,85041.0,0.1175997]
[1744822274954,0.00017644,85042.0,85041.0,0.1175997]
[1744822275156,0.00017644,85042.0,85041.0,0.1487997]
[1744822276854,0.00017644,85042.0,85041.0,1.6487997]
[1744822281360,0.00017644,85042.0,85041.0,1.6807997]
[1744822284564,0.11777474,85042.0,85041.0,0.032]
[1744822284756,0.1176135,85031.0,85026.0,0.08236]
[1744822284957,0.1176204,85027.0,85026.0,0.1176192]
[1744822285159,0.1176204,85027.0,85026.0,0.1764285]
[1744822285565,0.1501204,85027.0,85026.0,0.1764285]
[1744822286065,0.1817204,85027.0,85026.0,0.2513285]
[1744822286769,0.19763276,85027.0,85026.0,0.2513285]
[1744822286965,0.1817204,85027.0,85026.0,0.2513285]
[1744822287765,0.0641,85027.0,85026.0,0.2513285]
[1744822287954,0.0641,85027.0,85026.0,0.2523285]
[1744822288664,0.1817191,85027.0,85026.0,0.0659]
[1744822288854,0.2149191,85027.0,85026.0,0.1835204]
[1744822291368,0.0325,85027.0,85026.0,0.1835204]
[1744822291557,0.1176007,85041.0,85040.0,0.1764002]
[1744822291962,0.00017644,85042.0,85041.0,0.1175997]
[1744822292167,0.00017644,85042.0,85041.0,0.1275997]
[1744822292461,0.11777474,85042.0,85041.0,0.1275997]
[1744822293362,0.17917474,85042.0,85041.0,0.1275997]
[1744822298675,0.17917474,85042.0,85041.0,0.1595997]
[1744822298876,0.17917474,85042.0,85041.0,0.1914997]
[1744822299067,0.00017644,85042.0,85041.0,0.1914997]
[1744822299871,0.11777474,85042.0,85041.0,0.1914997]
[1744822300274,0.11777474,85042.0,85041.0,0.01]
[1744822300467,0.11777474,85042.0,85037.0,0.1175997]
[1744822300468,0.1764092,85038.0,85037.0,0.1175997]
[1744822300668,0.5372092,85038.0,85037.0,0.1275997]
[1744822300869,0.3608,85038.0,85037.0,0.1864002]
[1744822301072,0.4784038,85038.0,85037.0,0.2452013]
[1744822301483,0.4784038,85038.0,85037.0,0.3099013]
[1744822301780,0.5422038,85038.0,85037.0,0.3099013]
[1744822302173,0.4784038,85038.0,85037.0,0.3099013]
[1744822302374,0.3608,85038.0,85037.0,0.3099013]
[1744822302880,0.1176038,85038.0,85037.0,0.3099013]
[1744822303376,0.4196006,85040.0,85037.0,0.3199013]
[1744822303680,0.3608,85040.0,85039.0,0.1176025]
[1744822303876,0.00017644,85042.0,85039.0,0.1188012]
[1744822304084,0.00017644,85042.0,85041.0,0.1175997]
[1744822304271,0.00017644,85042.0,85041.0,0.1375997]
[1744822304471,0.00017644,85042.0,85041.0,0.2000997]
[1744822305274,0.11777474,85042.0,85041.0,0.2000997]
[1744822308270,0.00017644,85042.0,85041.0,0.2100997]
[1744822309185,0.00017644,85042.0,85041.0,1.7100997]
[1744822310878,0.01521347,85051.0,85041.0,1.7100997]
[1744822310879,0.005,85060.0,85051.0,0.1175859]
[1744822311078,0.4783845,85052.0,85051.0,0.1275859]
[1744822311277,0.4783845,85052.0,85051.0,0.1916859]
[1744822311479,0.4783845,85052.0,85051.0,0.2016859]
[1744822312286,0.4783845,85052.0,85051.0,0.1916859]
[1744822312486,0.4783845,85052.0,85051.0,0.2016859]
[1744822313786,0.005,85060.0,85059.0,0.1175748]
[1744822314086,0.005,85060.0,85059.0,0.2332748]
[1744822314286,0.0608,85074.0,85059.0,0.2332748]
[1744822314287,0.0303,85069.0,85068.0,0.1175624]
[1744822314487,0.0303,85069.0,85068.0,0.1587624]
[1744822314688,0.1175587,85071.0,85070.0,0.1175596]
[1744822314888,0.1175587,85071.0,85070.0,0.11653301]
[1744822315187,0.1478587,85071.0,85070.0,0.14773301]
[1744822315390,0.1636324,85071.0,85070.0,0.14773301]
[1744822315588,0.1636324,85071.0,85070.0,0.21073301]
[1744822318188,0.4195695,85085.0,85084.0,0.1175403]
[1744822318490,0.4523695,85085.0,85084.0,0.1275403]
[1744822318791,0.4523695,85085.0,85084.0,1.6275403]
[1744822318983,0.4523695,85085.0,85084.0,1.6583403]
[1744822319490,0.46693523,85085.0,85084.0,1.6583403]
[1744822321385,0.49943523,85085.0,85084.0,1.6583403]
[1744822322294,0.49943523,85085.0,85084.0,1.5308]
[1744822323193,0.49943523,85085.0,85084.0,1.6483403]
[1744822323392,0.49290463,85085.0,85084.0,1.6483403]
[1744822323584,0.4783389,85085.0,85084.0,1.6913403]
[1744822323980,0.5432389,85085.0,85084.0,1.6583403]
[1744822324887,0.5432389,85085.0,85084.0,1.6913403]
[1744822326683,0.3608,85085.0,85084.0,1.6913403]
[1744822326885,0.4783389,85085.0,85084.0,1.6913403]
[1744822327081,0.005,85086.0,85085.0,0.1175389]
[1744822327285,0.005,85086.0,85085.0,0.1923389]
[1744822327492,0.005,85086.0,85085.0,0.2023389]
[1744822330088,0.3608,85093.0,85085.0,0.0848]
[1744822330294,0.031,85097.0,85096.0,0.1175237]
[1744822330597,0.0639,85097.0,85096.0,0.1275237]
[1744822330994,0.13257348,85099.0,85098.0,0.1175209]
[1744822331189,0.1175196,85099.0,85098.0,1.6175209]
[1744822331389,0.1485196,85099.0,85098.0,1.6175209]
[1744822331696,0.1485195,85099.0,85098.0,1.6175209]
[1744822331888,0.1815195,85099.0,85098.0,1.6175209]
[1744822332487,0.1815195,85099.0,85098.0,1.5]
[1744822332694,0.0587649,85092.0,85088.0,0.0587673]
[1744822332992,0.1175334,85090.0,85089.0,0.1762986]
[1744822333297,0.1762919,85095.0,85094.0,0.1175265]
[1744822333500,0.2076919,85095.0,85094.0,0.1175265]
[1744822335096,0.1762919,85095.0,85094.0,0.1175265]
[1744822336190,0.2067919,85095.0,85094.0,0.1175265]
[1744822337198,0.5675919,85095.0,85094.0,0.1175265]
[1744822338005,0.1175292,85093.0,85092.0,0.1175284]
[1744822338300,0.1175292,85093.0,85092.0,0.1475284]
[1744822338488,0.1175292,85093.0,85092.0,0.1475292]
[1744822338489,0.1784292,85093.0,85092.0,0.1475292]
[1744822338689,0.1175306,85091.0,85090.0,0.0587653]
[1744822339598,0.0609,85093.0,85081.0,0.0304]
[1744822339789,0.117543,85082.0,85081.0,0.01]
[1744822339995,0.1175444,85081.0,85080.0,0.00017633]
[1744822340198,0.2351288,85071.0,85070.0,0.1175528]
[1744822340397,0.5959288,85071.0,85070.0,0.1175528]
[1744822341298,0.5959288,85071.0,85070.0,0.1575528]
[1744822342101,0.1175693,85063.0,85054.0,0.08216]
[1744822342399,0.4783693,85063.0,85062.0,0.11774703]
[1744822342600,0.4783693,85063.0,85062.0,0.00017633]
[1744822342994,0.1175762,85058.0,85057.0,0.0050554]
[1744822343388,0.1175762,85058.0,85057.0,0.122633]
[1744822343790,0.1508762,85058.0,85057.0,0.122633]
[1744822343992,0.1508762,85058.0,85057.0,0.0050554]
[1744822344194,0.1508762,85058.0,85049.0,0.00017633]
[1744822344195,0.1175873,85050.0,85049.0,0.00017633]
[1744822344387,0.1763925,85046.0,85045.0,0.1175928]
[1744822344589,0.117591,85048.0,85047.0,0.11759]
[1744822344792,0.3608,85050.0,85046.0,0.0587957]
[1744822344992,0.3608,85050.0,85049.0,0.1175886]
[1744822345193,0.4783873,85050.0,85049.0,0.1275886]
[1744822346793,0.3608,85050.0,85049.0,0.1275886]
[1744822346993,0.4783873,85050.0,85049.0,0.1295886]
[1744822347302,0.4783873,85050.0,85049.0,0.1345886]
[1744822349094,0.4783873,85050.0,85049.0,0.1245886]
[1744822350104,0.3608,85050.0,85049.0,0.1245886]
[1744822350306,0.4783873,85050.0,85049.0,0.1345886]
[1744822350803,0.4783873,85050.0,85049.0,0.1668886]
[1744822351102,0.3608,85050.0,85049.0,0.1668886]
[1744822351308,0.3608,85050.0,85049.0,0.1768886]
[1744822351506,0.00017633,85058.0,85057.0,0.1175776]
[1744822351694,0.032,85070.0,85067.0,0.0587812]
[1744822351893,0.032,85070.0,85057.0,1.51]
[1744822351894,0.3608,85072.0,85071.0,0.1175582]
[1744822352093,0.4783568,85072.0,85071.0,0.1275582]
[1744822352593,0.4783568,85072.0,85071.0,0.1598582]
[1744822354406,0.3608,85072.0,85071.0,0.1598582]
[1744822355306,0.4114,85081.0,85079.0,0.1175472]
[1744822355695,0.1495417,85083.0,85079.0,0.1175472]
[1744822355897,0.04701605,85083.0,85079.0,0.1175472]
[1744822356098,0.10578715,85083.0,85079.0,0.1175472]
[1744822356298,0.3608,85084.0,85079.0,0.1175472]
[1744822356602,0.0328,85083.0,85079.0,0.1816472]
[1744822357110,0.1503427,85083.0,85079.0,0.1816472]
[1744822358204,0.1175431,85082.0,85079.0,0.1816472]
[1744822358408,0.1175433,85082.0,85079.0,0.1816472]
[1744822359101,0.11772213,85080.0,85079.0,0.1816472]
[1744822359698,0.11772213,85080.0,85079.0,1.6816472]
[1744822359897,0.11772213,85080.0,85079.0,1.6494472]
[1744822360403,0.11772213,85080.0,85079.0,0.1494472]
[1744822361296,0.11772213,85080.0,85079.0,0.1820472]
[1744822361503,0.11772213,85080.0,85079.0,0.1501472]
[1744822361705,0.18022213,85080.0,85079.0,0.1501472]
[1744822363908,0.18022213,85080.0,85079.0,0.1806472]
[1744822364409,0.14912213,85080.0,85079.0,0.1906472]
[1744822365912,0.14912213,85080.0,85079.0,1.6906472]
[1744822366401,0.18032213,85080.0,85079.0,1.6906472]
[1744822367313,0.18032213,85080.0,85079.0,0.1906472]
[1744822369012,0.18032213,85080.0,85079.0,0.1601472]
[1744822369211,0.18032213,85080.0,85079.0,0.1501472]
[1744822369404,0.21052213,85080.0,85079.0,0.1501472]
[1744822371917,0.1175472,85079.0,85078.0,0.1175482]
[1744822372317,0.1805472,85079.0,85078.0,0.1175482]
[1744822372514,0.1175513,85076.0,85075.0,0.058776]
[1744822372815,0.1175527,85075.0,85074.0,0.091877]
[1744822373008,0.1805527,85075.0,85074.0,0.091877]
[1744822373212,0.117561,85069.0,85068.0,0.0587809]
[1744822373611,0.212361,85069.0,85068.0,0.0587809]
[1744822374511,0.212361,85069.0,85068.0,0.0597809]
[1744822374706,0.212361,85069.0,85068.0,0.1773401]
[1744822375320,0.573161,85069.0,85068.0,0.001]
[1744822375623,0.1175831,85055.0,85054.0,0.1763622]
[1744822375916,0.1175831,85055.0,85054.0,0.01]
[1744822376118,0.2351758,85051.0,85050.0,0.1175866]
[1744822376715,0.04522955,85055.0,85054.0,0.1175817]
[1744822376918,0.00017633,85059.0,85058.0,0.1175762]
[1744822377115,0.00017633,85059.0,85058.0,0.1275762]
[1744822377321,0.11775113,85059.0,85058.0,0.1275762]
[1744822379118,0.11775113,85059.0,85058.0,0.1285762]
[1744822379417,0.11775113,85059.0,85058.0,0.1305762]
[1744822379816,0.11775113,85059.0,85058.0,0.1295762]
[1744822380019,0.11775113,85059.0,85058.0,0.1305762]
[1744822380324,0.00017633,85059.0,85058.0,0.1285762]
[1744822380518,0.00017633,85059.0,85058.0,0.1305762]
[1744822382321,0.00017633,85059.0,85058.0,0.1405762]
[1744822382618,0.00017633,85059.0,85058.0,0.1385762]
[1744822382825,0.00017633,85059.0,85058.0,0.1415762]
[1744822383226,0.00017633,85059.0,85058.0,0.1425762]
[1744822383829,0.00017633,85059.0,85058.0,0.1395762]
[1744822384025,0.00017633,85059.0,85058.0,0.1435762]
[1744822384819,0.47855113,85059.0,85058.0,0.1335762]
[1744822385032,0.00017633,85059.0,85058.0,0.1335762]
[1744822385221,0.06267633,85059.0,85058.0,0.1335762]
[1744822385418,0.18025113,85059.0,85058.0,0.1335762]
[1744822385631,0.54105113,85059.0,85058.0,0.1335762]
[1744822385921,0.18025113,85059.0,85058.0,0.1335762]
[1744822386326,0.18025113,85059.0,85058.0,0.1315762]
[1744822386515,0.18025113,85059.0,85058.0,0.1325762]
[1744822386715,0.11775113,85059.0,85058.0,0.1285762]
[1744822386923,0.00017633,85059.0,85058.0,0.1295762]
[1744822387120,0.00017633,85059.0,85058.0,0.1285762]
[1744822387431,0.00017633,85059.0,85058.0,0.1425762]
[1744822388622,0.00017633,85059.0,85058.0,0.1405762]
[1744822388823,0.00017633,85059.0,85058.0,0.1425762]
[1744822389431,0.00017633,85059.0,85058.0,0.1405762]
[1744822389631,0.00017633,85059.0,85058.0,0.1425762]
[1744822390428,0.00017633,85059.0,85058.0,0.1435762]
[1744822392632,0.00017633,85059.0,85058.0,0.2060762]
[1744822392827,0.00017633,85059.0,85058.0,1.7060762]
[1744822393435,0.11775113,85059.0,85058.0,0.1860762]
[1744822393631,0.00017633,85059.0,85058.0,0.1654762]
[1744822394121,0.00017633,85059.0,85058.0,0.1960762]
[1744822396037,0.00017633,85059.0,85058.0,0.1940762]
[1744822396236,0.00017633,85059.0,85058.0,0.1960762]
[1744822396448,0.00017633,85059.0,85058.0,0.2060762]
[1744822400139,0.11775113,85059.0,85058.0,0.1654762]
[1744822400338,0.00017633,85059.0,85058.0,0.1654762]
[1744822400832,0.11775113,85059.0,85058.0,0.1654762]
[1744822401033,0.18005113,85059.0,85058.0,0.1654762]
[1744822401433,0.18005113,85059.0,85058.0,0.1335762]
[1744822401837,0.54085113,85059.0,85058.0,0.1335762]
[1744822402248,0.54085113,85059.0,85058.0,0.1663762]
[1744822402840,0.54085113,85059.0,85058.0,0.1335762]
[1744822403550,0.54085113,85059.0,85058.0,0.1205762]
[1744822404440,0.54085113,85059.0,85058.0,0.1185762]
[1744822406444,0.54085113,85059.0,85058.0,0.1285762]
[1744822408147,0.54085113,85059.0,85058.0,0.1185762]
[1744822409043,0.18005113,85059.0,85058.0,0.1501762]
[1744822410050,0.06247633,85059.0,85058.0,0.1501762]
[1744822410349,0.18005113,85059.0,85058.0,0.1501762]
[1744822411139,0.18005113,85059.0,85058.0,0.1601762]
[1744822411341,0.18005113,85059.0,85058.0,0.1918762]
[1744822411547,0.00017633,85059.0,85058.0,0.1918762]
[1744822411854,0.0659,85074.0,85073.0,0.1175555]
[1744822412058,0.0992,85074.0,85073.0,0.1275555]
[1744822413157,0.1002,85074.0,85073.0,0.1275555]
[1744822413745,0.0674,85074.0,85073.0,0.1275555]
[1744822413942,0.001,85074.0,85073.0,0.1600555]
[1744822414146,0.0642,85078.0,85077.0,0.1175499]
[1744822414450,0.0642,85078.0,85077.0,0.1275499]
[1744822415242,0.0642,85078.0,85077.0,0.1600499]
[1744822415646,0.0652,85078.0,85077.0,0.1600499]
[1744822417654,0.0652,85078.0,85077.0,0.1700499]
[1744822420855,0.0652,85078.0,85077.0,0.1720499]
[1744822420856,0.001,85078.0,85077.0,0.1720499]
[1744822421058,0.00017633,85082.0,85077.0,0.1720499]
[1744822421059,0.005,85086.0,85080.0,0.0587729]
[1744822421265,0.005,85086.0,85085.0,0.1175389]
[1744822421465,0.005,85086.0,85085.0,0.1796389]
[1744822421762,0.0617,85095.0,85094.0,0.1175265]
[1744822421953,0.1,85100.0,85099.0,0.1175195]
[1744822422153,0.2175182,85100.0,85099.0,0.1175195]
[1744822422561,0.1309,85100.0,85099.0,0.1175195]
[1744822423152,0.1309,85100.0,85099.0,0.1494195]
[1744822423655,0.2786182,85100.0,85099.0,0.1494195]
[1744822424461,0.2786182,85100.0,85099.0,0.1175195]
[1744822425762,0.2786182,85100.0,85099.0,0.1489195]
[1744822425960,0.1611,85100.0,85099.0,0.1589195]
[1744822426156,0.1,85100.0,85099.0,0.1589195]
[1744822426665,0.1,85100.0,85099.0,0.5197195]
[1744822426868,0.0259588,85100.0,85099.0,0.5197195]
[1744822427371,0.0259588,85100.0,85099.0,0.5297195]
[1744822428470,0.00017598,85108.0,85107.0,0.1175085]
[1744822428657,0.00017598,85108.0,85107.0,0.4983085]
[1744822428860,0.00017598,85108.0,85107.0,0.5597085]
[1744822430272,0.00017598,85108.0,85107.0,0.5697085]
[1744822431158,8e-08,85108.0,85107.0,0.91611883]
[1744822431361,0.5322336,85137.0,85135.0,0.1174685]
[1744822431564,0.5322336,85137.0,85131.0,0.3608]
[1744822431565,0.117474,85132.0,85131.0,0.3608]
[1744822433058,0.12623152,85132.0,85131.0,0.3608]
[1744822433469,0.01408301,85137.0,85136.0,0.1174685]
[1744822433665,0.1174671,85137.0,85136.0,0.1174685]
[1744822434064,0.1174671,85137.0,85136.0,0.1479685]
[1744822434261,0.058726,85148.0,85137.0,0.1174671]
[1744822434564,0.0305,85150.0,85137.0,0.1779671]
[1744822434765,0.1224657,85138.0,85137.0,0.2090671]
[1744822434974,0.1224657,85138.0,85137.0,0.1990671]
[1744822435169,0.1224657,85138.0,85137.0,0.0816]
[1744822435565,0.1224657,85138.0,85137.0,0.1990671]
[1744822435772,0.1224657,85138.0,85137.0,0.0816]
[1744822436562,0.1224657,85138.0,85137.0,0.1990671]
[1744822437164,0.1224657,85138.0,85137.0,0.1685671]
[1744822437372,0.1224657,85138.0,85137.0,0.0511]
[1744822437568,0.1174699,85135.0,85134.0,0.3608]
[1744822440470,0.1174699,85135.0,85134.0,0.4782712]
[1744822441475,0.005,85138.0,85135.0,0.0587343]
[1744822441774,0.1224657,85138.0,85137.0,0.1174671]
[1744822441966,0.1224657,85138.0,85137.0,0.1902671]
[1744822442881,0.005,85138.0,85137.0,0.1902671]
[1744822443180,0.005,85138.0,85137.0,0.2002671]
[1744822443779,0.1224657,85138.0,85137.0,0.2002671]
[1744822446279,0.1224657,85138.0,85137.0,0.1575671]
[1744822446578,0.1224657,85138.0,85137.0,0.01]
[1744822446780,0.1174699,85135.0,85134.0,0.3608]
[1744822447682,0.117485,85124.0,85118.0,0.3608]
[1744822447984,0.117485,85124.0,85120.0,0.11749]
[1744822448183,0.117485,85124.0,85123.0,0.11766262]
[1744822448684,0.117485,85124.0,85123.0,0.00017622]
[1744822448872,0.147785,85124.0,85123.0,0.00017622]
[1744822449576,0.147785,85124.0,85123.0,0.11766262]
[1744822450282,0.147785,85124.0,85123.0,0.00017622]
[1744822450481,0.147785,85124.0,85123.0,0.11766262]
[1744822451283,0.178685,85124.0,85123.0,0.11766262]
[1744822451483,0.178685,85124.0,85123.0,0.00017622]
[1744822452180,0.178685,85124.0,85123.0,0.11766262]
[1744822453275,0.178685,85124.0,85123.0,0.00017622]
[1744822453474,0.178685,85124.0,85123.0,0.11766262]
[1744822457488,0.178685,85124.0,85123.0,0.00017622]
[1744822458098,0.178685,85124.0,85123.0,0.11766262]
[1744822459391,0.178685,85124.0,85123.0,0.15026262]
[1744822462591,0.0612,85124.0,85123.0,0.15026262]
[1744822462796,0.178685,85124.0,85123.0,0.15026262]
[1744822463704,0.178685,85124.0,85123.0,0.03277622]
[1744822464002,0.1175085,85107.0,85106.0,0.4783099]
[1744822464205,0.0587526,85110.0,85109.0,0.1175057]
[1744822465299,0.10576504,85110.0,85109.0,0.1498057]
[1744822465901,0.10576504,85110.0,85109.0,0.1508057]
[1744822466106,0.10576504,85110.0,85109.0,0.1538057]
[1744822467398,0.10576504,85110.0,85109.0,0.1847057]
[1744822470708,0.10576504,85110.0,85109.0,0.1538057]
[1744822472415,0.04701244,85110.0,85109.0,0.1538057]
[1744822472714,0.04701244,85110.0,85109.0,0.1852057]
[1744822473206,0.16451684,85110.0,85109.0,0.1852057]
[1744822473605,0.17322151,85110.0,85109.0,0.1852057]
[1744822474006,0.05571711,85110.0,85109.0,0.1852057]
[1744822474208,0.02271711,85110.0,85109.0,0.1852057]
[1744822474409,0.0892495,85114.0,85113.0,0.1175002]
[1744822474610,0.0892495,85114.0,85113.0,0.2085002]
[1744822475115,0.0587495,85114.0,85113.0,0.2085002]
[1744822475315,0.00872231,85114.0,85113.0,0.5693002]